[Event "1st Chessable Sunway Formentera 2022"]
[Site "Formentera Punta Prima"]
[Date "2022.05.02"]
[Round "4"]
[White "Santos Ruiz, Miguel"]
[Black "Sargsyan, Shant"]
[Result "1/2-1/2"]
[ECO "A28"]
[WhiteElo "2586"]
[BlackElo "2641"]
[Annotator "TA"]
[PlyCount "43"]
[EventDate "2022.05.05"]
[EventType "swiss"]
[EventCountry "ESP"]
[SourceTitle "playchess.com"]
[Source "ChessBase"]
[SourceQuality "1"]
[TimeControl "40/5400+30:1800+30"]

{[%evp 9,43,7,0,0,6,12,10,11,0,0,11,10,11,12,14,18,17,22,23,17,21,0,16,16,9,9,16,9,27,1,23,0,19,0,21,0]} 1. c4 {[%emt 0:00:07]} Nf6 {[%emt 0:03:08]} 2. Nc3 {[%emt 0:00:10]} e5 {[%emt 0:00:19]} 3. Nf3 {[%emt 0:00:08]} Nc6 {[%emt 0:00:08]} 4. e4 {[%emt 0:00:06]} Bb4 {[%emt 0:00:57]} 5. d3 {[%emt 0:00:13]} d6 {[%emt 0:00:20]} 6. a3 {[%emt 0:00:06] A28: English Opening: Four Knights Variation.} Bc5 {[%emt 0:00:46] White must now prevent ...Ng4.} 7. b4 {[%emt 0:00:13]} Bb6 {[%emt 0:00:05]} 8. Be3 {[%emt 0:00:18]} O-O {[%emt 0:03:38]} 9. Be2 {[%emt 0:00:35]} Bg4 {[%emt 0:04:41]} 10. O-O {[%emt 0:01:00]} Bxf3 {[%emt 0:02:33]} 11. Bxf3 {[%emt 0:00:07]} Nd4 {[%emt 0:00:18]} 12. Na4 {[%emt 0:00:07]} Qd7 {[%emt 0:04:20]} 13. Nxb6 {[%emt 0:00:50]} Nxf3+ {[%emt 0:01:32]} 14. Qxf3 {[%emt 0:02:54]} axb6 {[%emt 0:00:03]} 15. h3 {[%emt 0:07:27] [#]} Ra4 $146 {[%emt 0:02:25]} ({Predecessor:} 15... Qe6 16. a4 Nd7 17. Ra3 Rfb8 18. Rfa1 Nf8 19. Qe2 Qd7 20. d4 exd4 21. Bxd4 Ng6 {½-½ (62) Lupulescu,C (2624)-McShane,L (2667) Terme Catez 2021}) 16. Bg5 {[%emt 0:10:59]} Qe6 {[%emt 0:02:29]} 17. Bc1 {[%emt 0:00:11]} Nd7 {[%emt 0:04:14]} 18. Bb2 {[%emt 0:01:04]} Qh6 {[%emt 0:04:04]} 19. Qf5 {[%emt 0:11:51]} Qe6 {[%emt 0:01:29]} 20. Qf3 {[%emt 0:00:07]} Qh6 {[%emt 0:00:48]} 21. Qf5 {[%emt 0:00:05]} Qe6 {[%emt 0:00:16]} 22. Qf3 {A balanced but interesting game.  Weighted Error Value: White=0.06 (flawless) /Black=0.04 (flawless)} 1/2-1/2

[Event "1st Chessable Sunway Formentera 2022"]
[Site "Formentera Punta Prima"]
[Date "2022.05.02"]
[Round "4"]
[White "Narciso Dublan, Marc"]
[Black "Prodhomme, Boris"]
[Result "1-0"]
[ECO "A45"]
[WhiteElo "2464"]
[BlackElo "2045"]
[Annotator "TA"]
[PlyCount "53"]
[EventDate "2022.05.05"]
[EventType "swiss"]
[EventCountry "ESP"]
[SourceTitle "playchess.com"]
[Source "ChessBase"]
[SourceQuality "1"]
[TimeControl "40/5400+30:1800+30"]

{[%evp 11,53,24,31,26,27,22,29,10,10,10,31,31,31,31,24,27,50,8,8,15,37,0,0,0,2,0,23,20,32,32,211,206,202,224,689,667,1354,1190,29984,1104,29989,29990,29991,29992]} 1. d4 {[%emt 0:00:05]} Nf6 {[%emt 0:04:29]} 2. Bg5 {[%emt 0:01:01]} c5 {[%emt 0:00:11]} 3. Bxf6 {[%emt 0:00:37]} gxf6 {[%emt 0:00:04]} 4. d5 {[%emt 0:00:08]} Qb6 {[%emt 0:00:53]} 5. Qc1 {[%emt 0:00:09]} f5 {[%emt 0:00:04]} 6. c4 {[%emt 0:00:20]} Bg7 {[%emt 0:00:54]} 7. Nc3 {[%emt 0:00:09] A45: Trompowsky Attack.} d6 {[%emt 0:06:55]} 8. e3 {[%emt 0:00:09]} e5 {[%emt 0:10:41]} 9. Bd3 {[%emt 0:03:37] White has an edge.} e4 {[%emt 0:02:54]} 10. Be2 {[%emt 0:00:19] [#]} Qb4 $146 {[%emt 0:08:21]} ({Predecessor:} 10... Nd7 11. Nh3 Ne5 12. O-O h5 13. Qc2 h4 14. a3 Bd7 15. Kh1 Rc8 16. f3 exf3 17. gxf3 {1-0 (28) Sedlak,N (2582)-Palac,M (2559) Neum 2008}) 11. Nh3 {[%emt 0:00:44]} Nd7 {[%emt 0:04:52]} 12. O-O {[%emt 0:12:26]} Bxc3 {[%emt 0:03:44]} 13. bxc3 {[%emt 0:00:14]} Qa4 {[%emt 0:04:10]} 14. Qb2 {[%emt 0:25:09]} Ne5 {[%emt 0:25:23]} 15. Qb3 {[%emt 0:01:22]} Qd7 {[%emt 0:06:57]} 16. f3 {[%emt 0:02:23]} Rg8 {[%emt 0:04:38]} 17. Nf4 {[%emt 0:01:29]} Qe7 {[%emt 0:01:06]} 18. Rf2 {[%emt 0:02:00][%cal Bf1f2,Bf2f5,Bf5f7][%mdl 32]} Ng6 {[%emt 0:04:48]} 19. fxe4 {[%emt 0:05:51]} fxe4 {[%emt 0:00:23]} 20. Raf1 {[%emt 0:00:43] And now Qb5+ would win.} f5 $2 {[%emt 0:03:28] [#] This move loses the game for Black.} (20... Nxf4 $14 21. Rxf4 f5) 21. Ne6 $1 $18 {[%emt 0:01:51]} Bxe6 {[%emt 0:00:45]} 22. dxe6 {[%emt 0:00:03]} O-O-O $2 {[%emt 0:03:10]} (22... Nh4) 23. Rxf5 {[%emt 0:01:39] Strongly threatening Rf7.} Nh4 {[%emt 0:02:02] [#]} 24. Rf7 $1 {[%emt 0:03:06]} Rxg2+ {[%emt 0:00:05]} 25. Kh1 {[%emt 0:00:03]} Rxh2+ {[%emt 0:00:49]} 26. Kxh2 {[%emt 0:00:07]} Nf3+ {[%emt 0:00:10]} 27. R1xf3 {[%emt 0:00:13] Weighted Error Value: White=0.07 (flawless) /Black=0.66} 1-0

[Event "1st Chessable Sunway Formentera 2022"]
[Site "Formentera Punta Prima"]
[Date "2022.05.02"]
[Round "4"]
[White "Jarmula, Lukasz"]
[Black "Batsiashvili, Nino"]
[Result "1/2-1/2"]
[ECO "C78"]
[WhiteElo "2459"]
[BlackElo "2463"]
[Annotator "TA"]
[PlyCount "76"]
[EventDate "2022.05.05"]
[EventType "swiss"]
[EventCountry "ESP"]
[SourceTitle "playchess.com"]
[Source "ChessBase"]
[SourceQuality "1"]
[TimeControl "40/5400+30:1800+30"]

{[%evp 17,76,28,45,0,9,0,14,14,46,16,11,4,22,16,64,32,33,0,55,48,46,50,50,50,45,49,58,63,52,47,76,51,52,13,15,15,11,15,15,15,17,17,5,0,1,0,0,-17,-4,-31,-26,-89,-67,-73,0,-89,0,-79,0,-81,0]} 1. e4 {[%emt 0:07:05]} e5 {[%emt 0:00:06]} 2. Nf3 {[%emt 0:00:06]} Nc6 {[%emt 0:00:04]} 3. Bb5 {[%emt 0:00:06][%cal Bf1b5,Bb5a4,Ba4b3][%mdl 32]} a6 {[%emt 0:00:06]} 4. Ba4 {[%emt 0:00:05]} Nf6 {[%emt 0:00:12]} 5. O-O {[%emt 0:00:08]} b5 {[%emt 0:00:16]} 6. Bb3 {[%emt 0:00:07]} Bc5 {[%emt 0:00:07]} 7. a4 {[%emt 0:00:14]} Rb8 {[%emt 0:00:14]} 8. c3 {[%emt 0:00:06]} d6 {[%emt 0:00:09]} 9. d4 {[%emt 0:00:09]} Bb6 {[%emt 0:00:17]} 10. a5 {[%emt 0:00:10] C78: Ruy Lopez: Archangelsk and Möller Defences.} Ba7 {[%emt 0:00:07]} (10... Nxa5 11. Rxa5 Bxa5 12. dxe5) (10... Bxa5 $2 11. d5 $18) 11. h3 {[%emt 0:00:15]} O-O {[%emt 0:01:30]} 12. Be3 {[%emt 0:01:11] The position is equal.} Re8 {[%emt 0:00:52] is the new trend.} 13. Ng5 {[%emt 0:00:24]} Rf8 {[%emt 0:00:18]} 14. Re1 {[%emt 0:00:14]} Ra8 {[%emt 0:14:21]} 15. Nf3 {[%emt 0:08:15]} Bb7 {[%emt 0:04:02]} (15... Re8 $11) 16. Nbd2 {[%emt 0:11:41] White is more active.} Re8 {[%emt 0:11:09]} 17. dxe5 {[%emt 0:08:52]} (17. Ng5 {with more complications.} Rf8 18. Ndf3 h6 19. Nxf7 Rxf7 20. dxe5 Bxe3 21. exf6 Ba7 22. Bxf7+ Kxf7 23. Qd5+) 17... Bxe3 {[%emt 0:07:16]} (17... Nxe5 $11 18. Nxe5 dxe5) 18. exf6 $14 {[%emt 0:04:17]} ({Don't play} 18. Rxe3 Nxe5 19. Qe2 c5 $11) 18... Bxd2 {[%emt 0:00:09]} 19. Qxd2 {[%emt 0:00:15][%cal Ob3f7] [#] Strongly threatening Bxf7+!} Qxf6 {[%emt 0:00:13]} 20. Bd5 {[%emt 0:01:57]} Rab8 {[%emt 0:03:20] [#]} 21. Re3 $146 {[%emt 0:02:35]} ({Predecessor:} 21. b4 Ne5 22. Nxe5 Rxe5 23. Bxb7 Rxb7 24. Rad1 Rb8 25. Qd4 Ra8 26. Re3 g6 27. f3 Qf4 28. Red3 h5 29. Kh1 {0-1 (39) Frank,A (2324)-Bracker,A (2228) Marianske Lazne 2022}) 21... Ne5 {[%emt 0:40:42]} 22. Nxe5 {[%emt 0:17:18]} Qxe5 {[%emt 0:00:00]} 23. Rae1 {[%emt 0:00:06]} Re7 {[%emt 0:00:00]} 24. b4 {[%emt 0:00:04]} h6 {[%emt 0:00:00]} 25. Qd4 Qxd4 {[%emt 0:00:00]} 26. cxd4 c6 $1 {[%emt 0:00:00]} 27. Bb3 c5 {[%emt 0:00:00]} 28. bxc5 dxc5 {[%emt 0:00:00]} 29. dxc5 Rc8 {[%emt 0:00:13]} 30. Rc1 Rxe4 {[%emt 0:00:00]} 31. Rd3 {[#] Threatens to win with Rd7.} Bc6 {[%emt 0:00:05] Against Rd7} 32. Rcd1 Kf8 {[%emt 0:00:05]} 33. Rf3 Re7 {[%emt 0:00:05]} 34. Rf5 (34. Rf4 $11 {remains equal.}) 34... Bd7 {[%emt 0:00:05]} 35. Rf3 {[%cal Ob3f7]} Bc6 {[%emt 0:00:05]} 36. Rf5 Bd7 {[%emt 0:00:16]} 37. Rf3 {[%cal Ob3f7]} Bc6 {[%emt 0:00:00]} 38. Rf5 Bd7 {[%emt 0:00:00] Weighted Error Value: White=0.13 (very precise) /Black=0.21 (precise)} ({Better is} 38... f6 $17) 1/2-1/2

[Event "1st Chessable Sunway Formentera 2022"]
[Site "Formentera Punta Prima"]
[Date "2022.05.02"]
[Round "4"]
[White "Song, Julien"]
[Black "Grutter, Tim"]
[Result "1/2-1/2"]
[ECO "E94"]
[WhiteElo "2388"]
[BlackElo "2241"]
[Annotator "TA"]
[PlyCount "132"]
[EventDate "2022.05.05"]
[EventType "swiss"]
[EventCountry "ESP"]
[SourceTitle "playchess.com"]
[Source "ChessBase"]
[SourceQuality "1"]
[TimeControl "40/5400+30:1800+30"]

{[%evp 20,132,31,16,52,41,30,29,29,17,23,-10,-13,-8,-6,-14,0,-11,0,0,0,-8,-2,-12,0,-6,-12,-2,-4,-3,0,0,0,-6,0,0,0,0,8,6,1,0,9,0,22,16,20,21,23,16,23,4,37,33,34,33,29,38,31,32,32,31,24,0,66,8,14,12,12,8,8,8,8,8,8,8,58,10,58,14,206,206,206,206,206,174,206,8,206,206,206,206,206,206,206,206,206,206,206,206,206,206,206,206,206,206,206,206,206,206,206,206,206,0,206]} 1. d4 {[%emt 0:00:06]} Nf6 {[%emt 0:00:07]} 2. c4 {[%emt 0:00:16]} g6 {[%emt 0:00:05]} 3. Nc3 {[%emt 0:00:33]} Bg7 {[%emt 0:00:05]} 4. e4 {[%emt 0:00:35]} d6 {[%emt 0:00:05]} 5. Nf3 {[%emt 0:00:35]} O-O {[%emt 0:00:08]} 6. Be2 {[%emt 0:00:37]} e5 {[%emt 0:00:05]} 7. O-O {[%emt 0:00:38]} exd4 {[%emt 0:00:31]} 8. Nxd4 {[%emt 0:00:46]} Re8 {[%emt 0:00:04]} 9. f3 {[%emt 0:01:14]} c6 {[%emt 0:00:06]} 10. Nc2 {[%emt 0:01:15]} Na6 {[%emt 0:00:32]} 11. Kh1 {[%emt 0:04:02]} h6 {[%emt 0:00:13] E94: King's Indian: Classical: 6 Be2 e5 7 0-0: Various Black 7th moves.} 12. Be3 {[%emt 0:16:18]} d5 {[%emt 0:00:10]} 13. cxd5 {[%emt 0:02:47]} cxd5 {[%emt 0:00:19] White has an edge.} 14. exd5 {[%emt 0:15:53] With the idea Qd2.} Nb4 $1 {[%emt 0:00:42] [#] Hoping for ...Nxc2.} 15. Bg1 $146 {[%emt 0:12:24]} (15. Bxh6 {seems wilder.} Nxc2 16. Bxg7 Nxa1 17. Bh6) ({Predecessor:} 15. Nxb4 Rxe3 16. Qd2 Re8 17. Bb5 Re5 18. Nd3 Rg5 19. Bc4 a6 20. Ne4 Rh5 21. Nf4 {1-0 (29) Saric,A (2474)-Rykov,I (2334) Pula 2006}) 15... Nbxd5 {[%emt 0:08:03]} 16. Nxd5 {[%emt 0:10:29]} Qxd5 {[%emt 0:05:53]} 17. Ne3 {[%emt 0:08:35]} Qe5 {[%emt 0:10:16]} 18. Qb3 {[%emt 0:03:12]} Nh5 {[%emt 0:21:46]} 19. Bc4 {[%emt 0:01:21]} Be6 {[%emt 0:01:40]} 20. Bxe6 {[%emt 0:03:05]} Qxe6 {[%emt 0:07:26]} 21. Qxb7 {[%emt 0:07:12]} Reb8 {[%emt 0:06:03]} 22. Qd5 {[%emt 0:00:14]} Qxd5 {[%emt 0:00:44]} 23. Nxd5 {[%emt 0:00:02] [#] Strongly threatening Nc7.} Rxb2 {[%emt 0:00:28]} 24. a4 {[%emt 0:00:45]} Nf6 {[%emt 0:05:10]} 25. Ne7+ {[%emt 0:03:24]} Kh7 {[%emt 0:02:31]} 26. Nc6 {[%emt 0:00:11]} a6 {[%emt 0:03:07]} 27. Rab1 {[%emt 0:02:31]} ({Much weaker is} 27. Bd4 Re2 $15) 27... Rc2 {[%emt 0:09:45]} 28. Nb4 {[%emt 0:01:00]} Rd2 {[%emt 0:01:12]} 29. Rfd1 {[%emt 0:00:33]} Rxd1 {[%emt 0:06:15]} 30. Rxd1 {[%emt 0:00:02]} a5 {[%emt 0:01:21]} 31. Nc6 {[%emt 0:00:09]} Ra6 {[%emt 0:01:35]} 32. Nd8 {[%emt 0:03:12]} Kg8 {[%emt 0:01:44]} 33. Nb7 {[%emt 0:00:02]} g5 {[%emt 0:02:57]} 34. Rd8+ {[%emt 0:00:18]} Kh7 {[%emt 0:00:06]} 35. g4 {[%emt 0:00:35]} Kg6 {[%emt 0:01:01]} 36. Kg2 {[%emt 0:01:22]} Rc6 {[%emt 0:00:29]} 37. Nxa5 {[%emt 0:00:28]} Ra6 {[%emt 0:00:50]} 38. Nc4 {[%emt 0:00:13]} Rxa4 {[%emt 0:00:24]} 39. Ne5+ {[%emt 0:00:04]} Kh7 {[%emt 0:00:03][%cal Of6h5]} 40. Nxf7 {[%emt 0:00:00]} Ra5 {[%emt 0:00:00]} 41. Bf2 {[%emt 0:24:38]} Rd5 {[%emt 0:14:42]} (41... Nd5 $11) 42. h4 {[%emt 0:05:29] White is more active.} (42. Rxd5 $14 Nxd5 43. Bg3) 42... Rxd8 {[%emt 0:05:21]} 43. Nxd8 {[%emt 0:00:08] next Ne6 is good for White.} gxh4 {[%emt 0:07:02]} 44. Bxh4 $11 {[%emt 0:02:57][%mdl 4096] Endgame KBN-KBN} h5 {[%emt 0:00:46]} 45. g5 {[%emt 0:00:19]} Nd5 {[%emt 0:00:05]} 46. Ne6 {[%emt 0:01:05]} Be5 {[%emt 0:02:28]} 47. Bg3 {[%emt 0:01:00]} Bh8 {[%emt 0:03:50]} (47... Bc3 $11) 48. Kh3 {[%emt 0:00:40]} (48. Nf8+ $1 $14 Kg7 49. Be5+ Kxf8 50. Bxh8) 48... Ne3 {[%emt 0:01:25]} (48... Kg6 $11) 49. Nf4 {[%emt 0:00:31]} Be5 $2 {[%emt 0:01:30]} (49... Nf5 $11) 50. Nxh5 $18 {[%emt 0:01:10]} Kg6 {[%emt 0:00:32]} 51. Bxe5 {[%emt 0:00:26][%cal Oe5f4] Threatens to win with Bf4!} Kxh5 {[%emt 0:00:02] KB-KN} 52. Bf6 {[%emt 0:00:32]} Nf5 {[%emt 0:00:31]} 53. Bd8 $2 {[%emt 0:00:11]} (53. f4 $18) 53... Kg6 $2 {[%emt 0:00:38]} (53... Ng7 $11 {and Black has nothing to worry.}) 54. Kg4 {[%emt 0:00:11]} Ne3+ {[%emt 0:00:11]} 55. Kf4 {[%emt 0:00:16]} Nf5 {[%emt 0:00:01]} 56. Bb6 {[%emt 0:00:49]} Ng7 {[%emt 0:00:21]} 57. Be3 {[%emt 0:00:55]} Nf5 {[%emt 0:00:36]} 58. Bc1 {[%emt 0:00:19]} Ng7 {[%emt 0:00:17]} 59. Ke5 {[%emt 0:00:07]} Nf5 {[%emt 0:00:08]} 60. f4 {[%emt 0:00:31]} Ng7 {[%emt 0:00:19]} 61. Be3 {[%emt 0:00:15]} Nf5 {[%emt 0:00:05]} 62. Bf2 {[%emt 0:00:15]} Ng7 {[%emt 0:00:19]} 63. Kd6 {[%emt 0:00:21]} Nf5+ {[%emt 0:00:14]} 64. Ke6 {[%emt 0:00:24]} Ng7+ {[%emt 0:00:04]} 65. Ke7 {[%emt 0:00:09]} Nf5+ {[%emt 0:00:11]} 66. Ke6 {[%emt 0:00:36]} Ng7+ {[%emt 0:07:46] Weighted Error Value: White=0.16 (very precise) /Black=0.24 (precise)} 1/2-1/2

[Event "1st Chessable Sunway Formentera 2022"]
[Site "Formentera Punta Prima"]
[Date "2022.05.02"]
[Round "4"]
[White "Eugene, Floryan"]
[Black "Tsatsalashvili, Keti"]
[Result "1/2-1/2"]
[ECO "D42"]
[WhiteElo "2370"]
[BlackElo "2331"]
[Annotator "TA"]
[PlyCount "82"]
[EventDate "2022.05.05"]
[EventType "swiss"]
[EventCountry "ESP"]
[SourceTitle "playchess.com"]
[Source "ChessBase"]
[SourceQuality "1"]
[TimeControl "40/5400+30:1800+30"]

{[%evp 19,82,10,27,-18,-12,-18,-8,-9,-4,-30,-25,-6,-20,-76,-70,-102,-104,-103,-103,-108,-106,-105,-66,-73,-65,-160,-86,-87,-47,-60,-60,-93,-42,-149,-155,-147,-158,-273,-272,-268,-266,-256,-127,-127,-115,-235,0,0,0,0,0,0,0,0,0,0,0,0,0,0,0,0,0,0,0]} 1. e4 {[%emt 0:03:25]} c6 {[%emt 0:00:10]} 2. d4 {[%emt 0:06:33]} d5 {[%emt 0:00:06]} 3. exd5 {[%emt 0:00:45]} cxd5 {[%emt 0:00:05]} 4. c4 {[%emt 0:00:04]} Nf6 {[%emt 0:00:08]} 5. Nc3 {[%emt 0:00:36]} e6 {[%emt 0:01:30]} 6. Nf3 {[%emt 0:00:50]} Be7 {[%emt 0:00:23]} 7. cxd5 {[%emt 0:00:31]} Nxd5 {[%emt 0:01:06]} 8. Bd3 {[%emt 0:00:47]} Nc6 {[%emt 0:00:25]} 9. O-O {[%emt 0:03:08]} O-O {[%emt 0:04:04]} 10. Re1 {[%emt 0:03:28]} Re8 {[%emt 0:03:53]} 11. Ne5 {[%emt 0:16:41] D42: Queen's Gambit Declined: Semi-Tarrasch: 5 cxd5 Nxd5 6 e3 Nc6 7 Bd3 .} Nxe5 {[%emt 0:01:20]} 12. dxe5 {[%emt 0:00:37]} Nxc3 {[%emt 0:07:36]} 13. bxc3 {[%emt 0:00:05]} Qc7 {[%emt 0:00:46] [#]} 14. Bf4 $146 {[%emt 0:20:42][%cal Oh2h4]} ({Predecessor:} 14. Re3 g6 15. h4 Bc5 16. Re1 Rd8 17. Bg5 Be7 18. Qf3 Bxg5 19. hxg5 Qxc3 {0-1 (59) Khandelwal,A (1964)-Martinovic,S (2139) Herceg Novi 2005}) 14... Bd7 {[%emt 0:11:03]} 15. h4 {[%emt 0:04:43]} Red8 {[%emt 0:04:32]} 16. Qg4 {[%emt 0:07:28]} (16. Qh5 g6 17. Qh6 Qxc3 $17) (16. Re3 $11 {remains equal.}) 16... Qxc3 $17 {[%emt 0:20:56]} 17. Be4 {[%emt 0:04:09]} Bc6 $1 {[%emt 0:00:16]} 18. Bh6 {[%emt 0:05:49][%csl Gh6][%cal Rg4g7]} g6 {[%emt 0:00:10]} 19. Bxc6 {[%emt 0:02:52]} bxc6 20. Rac1 {[%emt 0:00:30]} Qd4 21. Re4 {[%emt 0:00:06]} Qd5 22. Rce1 {[%emt 0:00:15]} (22. Rec4 $15) 22... Rab8 (22... Qxa2 $142 {Strongly threatening ...a5.} 23. Rc1 c5) 23. h5 {[%emt 0:00:30]} Rb2 24. Bg5 $1 {[%emt 0:00:30]} Qc5 $36 {[%mdl 2048] And now ...Bxg5 would win. Black has the initiative.} 25. Rf4 {[%emt 0:00:30]} Rdb8 (25... Rd5 $17 26. Bxe7 Qxe7) 26. Ree4 {[%emt 0:00:10]} (26. Bxe7 $15 Qxe7 27. Rc4) 26... Bxg5 (26... Rxa2 27. Rc4 Rb1+ 28. Kh2 Qxe5 29. Bxe7 Rxf2 30. hxg6 hxg6 31. Bf6 Rxf4 32. Qxf4 (32. Bxe5 Rxg4 33. Rxg4 Rb5 $11) 32... Qxf4+ 33. Rxf4 $16) 27. Qxg5 {[%emt 0:00:30] [#]} Rxf2 $1 (27... Rxa2 28. hxg6 fxg6 29. Rc4 $18) 28. Rxf2 {[%emt 0:00:30]} (28. Rc4 $17 Qe3 29. Kh2 Rxf4 30. Rxf4) 28... Rb1+ $19 {[%mdl 64] Deflection} 29. Kh2 {[%emt 0:00:05]} Qxf2 {[%mdl 4096] Endgame KQR-KQR} 30. h6 {[%emt 0:00:05][%cal Rg5d8]} f6 ({Not} 30... Rd1 $2 31. Qe3 Qxe3 32. Rxe3 $17) (30... Qg1+ $19 {has better winning chances.} 31. Kg3 Rd1) 31. exf6 $17 {[%emt 0:00:30] [#] Black must now prevent Qe5.} Rb5 {Inhibits Qe5.} 32. Re5 {[%emt 0:00:30]} (32. f7+ $17 {might work better.} Kxf7 33. Rf4+ Ke8 34. Qxg6+ hxg6 35. Rxf2 Rh5+ 36. Kg3) 32... Rxe5 $2 ({And not} 32... Qxa2 33. Rxb5 cxb5 34. Qxb5 $11) ({Better is} 32... Rb4 $19 {( -> ...Rh4+)} 33. Kh3 Kf7) 33. Qxe5 $19 {[%emt 0:00:30] KQ-KQ. The position is equal.} Kf7 (33... Qxa2 {is a self mate.} 34. Qc7) 34. Qc7+ {[%emt 0:00:30]} Kxf6 35. Qxh7 {[%emt 0:00:30]} Qh4+ 36. Kg1 {[%emt 0:00:30]} Qe1+ 37. Kh2 {[%emt 0:00:30]} Kg5 38. Qg7 {[%emt 0:00:06]} Qh4+ 39. Kg1 {[%emt 0:00:10] Intending Qe7+ and mate.} Qe1+ 40. Kh2 {[%emt 0:00:30]} Qh4+ 41. Kg1 {[%emt 0:30:25] aiming for Qe7+.} Qe1+ {Black had all chances to win.  Weighted Error Value: White=0.25 (precise) /Black=0.18 (very precise)} 1/2-1/2

[Event "1st Chessable Sunway Formentera 2022"]
[Site "Formentera Punta Prima"]
[Date "2022.05.02"]
[Round "4"]
[White "Chiku-Ratte, Olivier-Kenta"]
[Black "Vanduyfhuys, Daria"]
[Result "1-0"]
[ECO "D60"]
[WhiteElo "2358"]
[BlackElo "2063"]
[Annotator "TA"]
[PlyCount "103"]
[EventDate "2022.05.05"]
[EventType "swiss"]
[EventCountry "ESP"]
[SourceTitle "playchess.com"]
[Source "ChessBase"]
[SourceQuality "1"]
[TimeControl "40/5400+30:1800+30"]

{[%evp 20,103,62,14,48,53,60,62,57,24,71,63,64,62,66,64,101,-6,47,0,0,-6,-6,-12,-12,-5,-12,-12,-12,-12,0,0,5,0,66,64,69,14,21,0,56,59,63,56,53,63,83,87,99,72,91,91,104,99,89,101,127,105,159,141,142,103,150,63,54,64,100,100,175,172,641,641,576,637,504,594,587,580,528,527,507,500,800,804,734,746]} 1. d4 {[%emt 0:02:18]} Nf6 {[%emt 0:00:09]} 2. c4 {[%emt 0:00:54]} e6 {[%emt 0:00:06]} 3. Nf3 {[%emt 0:01:40]} d5 {[%emt 0:00:15]} 4. Nc3 {[%emt 0:00:05]} Be7 {[%emt 0:04:21]} 5. Bg5 {[%emt 0:02:36]} O-O {[%emt 0:00:17]} 6. e3 {[%emt 0:00:58]} c6 {[%emt 0:00:32]} 7. Bd3 {[%emt 0:00:53]} Nbd7 {[%emt 0:00:29]} 8. O-O {[%emt 0:01:35]} dxc4 {[%emt 0:00:50]} 9. Bxc4 {[%emt 0:00:42]} b5 {[%emt 0:00:41]} 10. Bd3 {[%emt 0:02:49]} a6 {[%emt 0:01:08]} 11. e4 {[%emt 0:07:49]} (11. Qc2 $14) 11... Bb7 {[%emt 0:15:18] D60: Queen's Gambit Declined: Classical: Unusual White 7th moves.} (11... c5 $5 {[%cal Rc5d4]}) 12. e5 $1 {[%emt 0:12:42]} Nd5 {[%emt 0:00:26] Threatens to win with ...Nxc3.} 13. Bxe7 {[%emt 0:07:24]} Qxe7 {[%emt 0:00:26] White is slightly better.} 14. Ne4 {[%emt 0:02:36] [#]} Nb4 $146 {[%emt 0:18:03]} (14... c5 $11) ({Predecessor:} 14... N7b6 15. Nfg5 h6 16. Nh3 Rad8 17. Rc1 Nd7 18. Re1 Qh4 19. Nd6 Ba8 20. Re4 Qe7 {0-1 (64) Kir,K (1809)-Csefalvay,S (1769) Slovakia 2019}) 15. Nd6 $16 {[%emt 0:21:14]} Rab8 {[%emt 0:54:18]} 16. Bb1 {[%emt 0:07:20] White is more active.} c5 {[%emt 0:00:00]} 17. dxc5 {[%emt 0:00:00]} Bd5 18. Qd4 {[%emt 0:00:00]} (18. Re1 $16) 18... Nc6 (18... Bxf3 $11 19. gxf3 Qg5+ 20. Kh1 Nd5) 19. Qg4 {[%emt 0:00:00]} (19. Qe3 $14) 19... g6 $11 20. Qf4 $132 {[%emt 0:00:00][%mdl 2048] White is fighting back} Nxc5 21. Rc1 {[%emt 0:00:00]} Nd7 {[%cal Bc5d7,Bd7f6,Bf6g4][%mdl 32] ...Bxf3 is the strong threat.} 22. Ne4 $1 {[%emt 0:00:00] aiming for Nf6+.} f6 23. exf6 {[%emt 0:00:00]} Nxf6 24. Qe3 {[%emt 0:00:00]} Ng4 25. Qg5 {[%emt 0:00:00]} Qxg5 26. Nexg5 {[%emt 0:00:00]} h6 {[#]} (26... Rf4 $11) 27. Nxe6 $1 $14 {[%emt 0:00:00]} Rf6 {[#]} 28. Nc5 {[%emt 0:00:00]} (28. h3 $1 $14) 28... Bxf3 $11 29. Nd7 {[%emt 0:00:00]} Bd5 (29... Nd4 $11 30. Nxf6+ Nxf6 31. gxf3 Ne2+ 32. Kf1 Nxc1) 30. Nxf6+ $14 {[%emt 0:00:00]} ({Much weaker is} 30. Nxb8 Rxf2 31. Rc2 (31. Nxc6 Rxg2+ 32. Kf1 Nxh2+ 33. Ke1 Nf3+ 34. Kf1 Rg1+ 35. Ke2 Rxc1 $11) 31... Rxc2 32. Bxc2 Nxb8 $11) 30... Nxf6 31. Bxg6 {[%emt 0:00:00]} Kg7 32. Bd3 {[%emt 0:00:00]} Kf7 33. f3 {[%emt 0:00:00]} Ke6 34. Kf2 {[%emt 0:00:00]} Kd6 35. Rd1 {[%emt 0:00:00]} Kc5 36. Rac1+ {[%emt 0:00:00]} Kb6 37. b3 {[%emt 0:00:00]} Nb4 38. Bb1 {[%emt 0:00:00]} Re8 ({Better is} 38... a5) 39. Rd4 $16 {[%emt 0:00:00]} a5 40. Rf4 {[%emt 0:00:00]} Re6 (40... Rf8 $142) 41. Rc8 {[%emt 0:30:00]} (41. g4 $16) 41... Bc6 $14 42. Rd4 {[%emt 0:00:00]} Nbd5 43. Rd2 {[%emt 0:00:00]} Nc3 (43... h5 $16) 44. Bf5 $18 {[%emt 0:00:00] Chess con chili.} Re5 {[#]} (44... Re8) 45. Rd6 $1 {[%emt 0:00:00][%csl LRc6,LRf6] White is clearly winning.} Rxf5 46. Rdxc6+ {[%emt 0:00:00]} Kb7 47. R8c7+ {[%emt 0:00:00]} Kb8 48. Rxc3 {[%emt 0:00:00]} Ne4+ 49. Ke3 {[%emt 0:00:00]} Nxc3 50. Rxc3 {[%emt 0:00:00]} Kb7 (50... Re5+ $142 51. Kf2 Rh5) 51. Ke4 {[%emt 0:00:00]} Rg5 52. g4 {[%emt 0:00:00] Weighted Error Value: White=0.16 (very precise) /Black=0.39} 1-0